{"text_format":"3","workbook":"xlsx","n_sheets":1,"sheets":["Работна карта за годината"],"not_rendered":{"defined_names":2},"read":"whole","date_system":"1900"}

{"sheet":"Работна карта за годината","index":0,"n_rows":140,"n_cols":12,"rows_kept":140,"merged":[[0,1,1,11],[2,6,2,7],[2,8,2,9],[5,1,5,11],[39,1,39,11],[73,1,73,11],[107,1,107,11]]}
[null,"Работна карта на служител"]
[]
[null,"Име на служител:",null,"Имейл:",null,null,"Общо за годината до момента:"]
[null,"Мениджър:",null,"Телефон:",null,null,"Редовни часове:",{"$f":"SUM(C16,C27,C38,C50,C61,C72,C84,C95,C106,C118,C129,C140)","v":0},"Извънредни часове:",{"$f":"SUM(F16,F27,F38,F50,F61,F72,F84,F95,F106,F118,F129,F140)","v":0},"Общо:",{"$f":"SUM(H4:J4)","v":0}]
[]
[null,"Януари, февруари, март      Работна карта на служител: Дневно, седмично, месечно, годишно"]
[null,"Януари","Седмица 1","Извънредни","Седмица 2","Извънредни ","Седмица 3","Извънредни  ","Седмица 4","Извънредни   ","Седмица 5","Извънредни    "]
[null,"Понеделник"]
[null,"Вторник"]
[null,"Сряда"]
[null,"Четвъртък"]
[null,"Петък"]
[null,"Събота"]
[null,"Неделя"]
[null,"Общо часове седмично",{"$f":"SUBTOTAL(109,Януари[Седмица 1])","v":0},{"$f":"SUBTOTAL(109,Януари[Извънредни])","v":0},{"$f":"SUBTOTAL(109,Януари[Седмица 2])","v":0},{"$f":"SUBTOTAL(109,Януари[[Извънредни ]])","v":0},{"$f":"SUBTOTAL(109,Януари[Седмица 3])","v":0},{"$f":"SUBTOTAL(109,Януари[[Извънредни  ]])","v":0},{"$f":"SUBTOTAL(109,Януари[Седмица 4])","v":0},{"$f":"SUBTOTAL(109,Януари[[Извънредни   ]])","v":0},{"$f":"SUBTOTAL(109,Януари[Седмица 5])","v":0},{"$f":"SUBTOTAL(109,Януари[[Извънредни    ]])","v":0}]
[null,"Януари общо: Редовни часове",{"$f":"SUM(Януари[[#Totals],[Седмица 1]],Януари[[#Totals],[Седмица 2]],Януари[[#Totals],[Седмица 3]],Януари[[#Totals],[Седмица 4]],Януари[[#Totals],[Седмица 5]])","v":0},"Януари общо: Извънредни",null,{"$f":"SUM(Януари[[#Totals],[Извънредни]],Януари[[#Totals],[Извънредни ]],Януари[[#Totals],[Извънредни  ]],Януари[[#Totals],[Извънредни   ]],Януари[[#Totals],[Извънредни    ]])","v":0}]
[]
[null,"Февруари","Седмица 1","Извънредни","Седмица 2","Извънредни ","Седмица 3","Извънредни  ","Седмица 4","Извънредни   ","Седмица 5","Извънредни    "]
[null,"Понеделник"]
[null,"Вторник"]
[null,"Сряда"]
[null,"Четвъртък"]
[null,"Петък"]
[null,"Събота"]
[null,"Неделя"]
[null,"Общо часове седмично",{"$f":"SUBTOTAL(109,Февруари[Седмица 1])","v":0},{"$f":"SUBTOTAL(109,Февруари[Извънредни])","v":0},{"$f":"SUBTOTAL(109,Февруари[Седмица 2])","v":0},{"$f":"SUBTOTAL(109,Февруари[[Извънредни ]])","v":0},{"$f":"SUBTOTAL(109,Февруари[Седмица 3])","v":0},{"$f":"SUBTOTAL(109,Февруари[[Извънредни  ]])","v":0},{"$f":"SUBTOTAL(109,Февруари[Седмица 4])","v":0},{"$f":"SUBTOTAL(109,Февруари[[Извънредни   ]])","v":0},{"$f":"SUBTOTAL(109,Февруари[Седмица 5])","v":0},{"$f":"SUBTOTAL(109,Февруари[[Извънредни    ]])","v":0}]
[null,"Февруари общо: Редовни часове",{"$f":"SUM(Февруари[[#Totals],[Седмица 1]],Февруари[[#Totals],[Седмица 2]],Февруари[[#Totals],[Седмица 3]],Февруари[[#Totals],[Седмица 4]],Февруари[[#Totals],[Седмица 5]])","v":0},"Февруари общо: Извънредни",null,{"$f":"SUM(Февруари[[#Totals],[Извънредни]],Февруари[[#Totals],[Извънредни ]],Февруари[[#Totals],[Извънредни  ]],Февруари[[#Totals],[Извънредни   ]],Февруари[[#Totals],[Извънредни    ]])","v":0}]
[]
[null,"Март","Седмица 1","Извънредни","Седмица 2","Извънредни ","Седмица 3","Извънредни  ","Седмица 4","Извънредни   ","Седмица 5","Извънредни    "]
[null,"Понеделник"]
[null,"Вторник"]
[null,"Сряда"]
[null,"Четвъртък"]
[null,"Петък"]
[null,"Събота"]
[null,"Неделя"]
[null,"Общо часове седмично",{"$f":"SUBTOTAL(109,Март[Седмица 1])","v":0},{"$f":"SUBTOTAL(109,Март[Извънредни])","v":0},{"$f":"SUBTOTAL(109,Март[Седмица 2])","v":0},{"$f":"SUBTOTAL(109,Март[[Извънредни ]])","v":0},{"$f":"SUBTOTAL(109,Март[Седмица 3])","v":0},{"$f":"SUBTOTAL(109,Март[[Извънредни  ]])","v":0},{"$f":"SUBTOTAL(109,Март[Седмица 4])","v":0},{"$f":"SUBTOTAL(109,Март[[Извънредни   ]])","v":0},{"$f":"SUBTOTAL(109,Март[Седмица 5])","v":0},{"$f":"SUBTOTAL(109,Март[[Извънредни    ]])","v":0}]
[null,"Март общо: Редовни часове",{"$f":"SUM(Март[[#Totals],[Седмица 1]],Март[[#Totals],[Седмица 2]],Март[[#Totals],[Седмица 3]],Март[[#Totals],[Седмица 4]],Март[[#Totals],[Седмица 5]])","v":0},"Март общо: Извънредни",null,{"$f":"SUM(Март[[#Totals],[Извънредни]],Март[[#Totals],[Извънредни ]],Март[[#Totals],[Извънредни  ]],Март[[#Totals],[Извънредни   ]],Март[[#Totals],[Извънредни    ]])","v":0}]
[]
[null,"Април, май, юни      Работна карта на служител: Дневно, седмично, месечно, годишно"]
[null,"Април","Седмица 1","Извънредни","Седмица 2","Извънредни ","Седмица 3","Извънредни  ","Седмица 4","Извънредни   ","Седмица 5","Извънредни    "]
[null,"Понеделник"]
[null,"Вторник"]
[null,"Сряда"]
[null,"Четвъртък"]
[null,"Петък"]
[null,"Събота"]
[null,"Неделя"]
[null,"Общо часове седмично",{"$f":"SUBTOTAL(109,Април[Седмица 1])","v":0},{"$f":"SUBTOTAL(109,Април[Извънредни])","v":0},{"$f":"SUBTOTAL(109,Април[Седмица 2])","v":0},{"$f":"SUBTOTAL(109,Април[[Извънредни ]])","v":0},{"$f":"SUBTOTAL(109,Април[Седмица 3])","v":0},{"$f":"SUBTOTAL(109,Април[[Извънредни  ]])","v":0},{"$f":"SUBTOTAL(109,Април[Седмица 4])","v":0},{"$f":"SUBTOTAL(109,Април[[Извънредни   ]])","v":0},{"$f":"SUBTOTAL(109,Април[Седмица 5])","v":0},{"$f":"SUBTOTAL(109,Април[[Извънредни    ]])","v":0}]
[null,"Април общо: Редовни часове",{"$f":"SUM(Април[[#Totals],[Седмица 1]],Април[[#Totals],[Седмица 2]],Април[[#Totals],[Седмица 3]],Април[[#Totals],[Седмица 4]],Април[[#Totals],[Седмица 5]])","v":0},"Април общо: Извънредни",null,{"$f":"SUM(Април[[#Totals],[Извънредни]],Април[[#Totals],[Извънредни ]],Април[[#Totals],[Извънредни  ]],Април[[#Totals],[Извънредни   ]],Април[[#Totals],[Извънредни    ]])","v":0}]
[]
[null,"Май","Седмица 1","Извънредни","Седмица 2","Извънредни ","Седмица 3","Извънредни  ","Седмица 4","Извънредни   ","Седмица 5","Извънредни    "]
[null,"Понеделник"]
[null,"Вторник"]
[null,"Сряда"]
[null,"Четвъртък"]
[null,"Петък"]
[null,"Събота"]
[null,"Неделя"]
[null,"Общо часове седмично",{"$f":"SUBTOTAL(109,Май[Седмица 1])","v":0},{"$f":"SUBTOTAL(109,Май[Извънредни])","v":0},{"$f":"SUBTOTAL(109,Май[Седмица 2])","v":0},{"$f":"SUBTOTAL(109,Май[[Извънредни ]])","v":0},{"$f":"SUBTOTAL(109,Май[Седмица 3])","v":0},{"$f":"SUBTOTAL(109,Май[[Извънредни  ]])","v":0},{"$f":"SUBTOTAL(109,Май[Седмица 4])","v":0},{"$f":"SUBTOTAL(109,Май[[Извънредни   ]])","v":0},{"$f":"SUBTOTAL(109,Май[Седмица 5])","v":0},{"$f":"SUBTOTAL(109,Май[[Извънредни    ]])","v":0}]
[null,"Май общо: Редовни часове",{"$f":"SUM(Май[[#Totals],[Седмица 1]],Май[[#Totals],[Седмица 2]],Май[[#Totals],[Седмица 3]],Май[[#Totals],[Седмица 4]],Май[[#Totals],[Седмица 5]])","v":0},"Май общо: Извънредни",null,{"$f":"SUM(Май[[#Totals],[Извънредни]],Май[[#Totals],[Извънредни ]],Май[[#Totals],[Извънредни  ]],Май[[#Totals],[Извънредни   ]],Май[[#Totals],[Извънредни    ]])","v":0}]
[]
[null,"Юни","Седмица 1","Извънредни","Седмица 2","Извънредни ","Седмица 3","Извънредни  ","Седмица 4","Извънредни   ","Седмица 5","Извънредни    "]
[null,"Понеделник"]
[null,"Вторник"]
[null,"Сряда"]
[null,"Четвъртък"]
[null,"Петък"]
[null,"Събота"]
[null,"Неделя"]
[null,"Общо часове седмично",{"$f":"SUBTOTAL(109,Юни[Седмица 1])","v":0},{"$f":"SUBTOTAL(109,Юни[Извънредни])","v":0},{"$f":"SUBTOTAL(109,Юни[Седмица 2])","v":0},{"$f":"SUBTOTAL(109,Юни[[Извънредни ]])","v":0},{"$f":"SUBTOTAL(109,Юни[Седмица 3])","v":0},{"$f":"SUBTOTAL(109,Юни[[Извънредни  ]])","v":0},{"$f":"SUBTOTAL(109,Юни[Седмица 4])","v":0},{"$f":"SUBTOTAL(109,Юни[[Извънредни   ]])","v":0},{"$f":"SUBTOTAL(109,Юни[Седмица 5])","v":0},{"$f":"SUBTOTAL(109,Юни[[Извънредни    ]])","v":0}]
[null,"Юни общо: Редовни часове",{"$f":"SUM(Юни[[#Totals],[Седмица 1]],Юни[[#Totals],[Седмица 2]],Юни[[#Totals],[Седмица 3]],Юни[[#Totals],[Седмица 4]],Юни[[#Totals],[Седмица 5]])","v":0},"Юни общо: Извънредни",null,{"$f":"SUM(Юни[[#Totals],[Извънредни]],Юни[[#Totals],[Извънредни ]],Юни[[#Totals],[Извънредни  ]],Юни[[#Totals],[Извънредни   ]],Юни[[#Totals],[Извънредни    ]])","v":0}]
[]
[null,"Юли, август, септември      Работна карта на служител: Дневно, седмично, месечно, годишно"]
[null,"Юли","Седмица 1","Извънредни","Седмица 2","Извънредни ","Седмица 3","Извънредни  ","Седмица 4","Извънредни   ","Седмица 5","Извънредни    "]
[null,"Понеделник"]
[null,"Вторник"]
[null,"Сряда"]
[null,"Четвъртък"]
[null,"Петък"]
[null,"Събота"]
[null,"Неделя"]
[null,"Общо часове седмично",{"$f":"SUBTOTAL(109,Юли[Седмица 1])","v":0},{"$f":"SUBTOTAL(109,Юли[Извънредни])","v":0},{"$f":"SUBTOTAL(109,Юли[Седмица 2])","v":0},{"$f":"SUBTOTAL(109,Юли[[Извънредни ]])","v":0},{"$f":"SUBTOTAL(109,Юли[Седмица 3])","v":0},{"$f":"SUBTOTAL(109,Юли[[Извънредни  ]])","v":0},{"$f":"SUBTOTAL(109,Юли[Седмица 4])","v":0},{"$f":"SUBTOTAL(109,Юли[[Извънредни   ]])","v":0},{"$f":"SUBTOTAL(109,Юли[Седмица 5])","v":0},{"$f":"SUBTOTAL(109,Юли[[Извънредни    ]])","v":0}]
[null,"Юли общо: Редовни часове",{"$f":"SUM(Юли[[#Totals],[Седмица 1]],Юли[[#Totals],[Седмица 2]],Юли[[#Totals],[Седмица 3]],Юли[[#Totals],[Седмица 4]],Юли[[#Totals],[Седмица 5]])","v":0},"Юли общо: Извънредни",null,{"$f":"SUM(Юли[[#Totals],[Извънредни]],Юли[[#Totals],[Извънредни ]],Юли[[#Totals],[Извънредни  ]],Юли[[#Totals],[Извънредни   ]],Юли[[#Totals],[Извънредни    ]])","v":0}]
[]
[null,"Август","Седмица 1","Извънредни","Седмица 2","Извънредни ","Седмица 3","Извънредни  ","Седмица 4","Извънредни   ","Седмица 5","Извънредни    "]
[null,"Понеделник"]
[null,"Вторник"]
[null,"Сряда"]
[null,"Четвъртък"]
[null,"Петък"]
[null,"Събота"]
[null,"Неделя"]
[null,"Общо часове седмично",{"$f":"SUBTOTAL(109,Август[Седмица 1])","v":0},{"$f":"SUBTOTAL(109,Август[Извънредни])","v":0},{"$f":"SUBTOTAL(109,Август[Седмица 2])","v":0},{"$f":"SUBTOTAL(109,Август[[Извънредни ]])","v":0},{"$f":"SUBTOTAL(109,Август[Седмица 3])","v":0},{"$f":"SUBTOTAL(109,Август[[Извънредни  ]])","v":0},{"$f":"SUBTOTAL(109,Август[Седмица 4])","v":0},{"$f":"SUBTOTAL(109,Август[[Извънредни   ]])","v":0},{"$f":"SUBTOTAL(109,Август[Седмица 5])","v":0},{"$f":"SUBTOTAL(109,Август[[Извънредни    ]])","v":0}]
[null,"Август общо: Редовни часове",{"$f":"SUM(Август[[#Totals],[Седмица 1]],Август[[#Totals],[Седмица 2]],Август[[#Totals],[Седмица 3]],Август[[#Totals],[Седмица 4]],Август[[#Totals],[Седмица 5]])","v":0},"Август общо: Извънредни",null,{"$f":"SUM(Август[[#Totals],[Извънредни]],Август[[#Totals],[Извънредни ]],Август[[#Totals],[Извънредни  ]],Август[[#Totals],[Извънредни   ]],Август[[#Totals],[Извънредни    ]])","v":0}]
[]
[null,"Септември","Седмица 1","Извънредни","Седмица 2","Извънредни ","Седмица 3","Извънредни  ","Седмица 4","Извънредни   ","Седмица 5","Извънредни    "]
[null,"Понеделник"]
[null,"Вторник"]
[null,"Сряда"]
[null,"Четвъртък"]
[null,"Петък"]
[null,"Събота"]
[null,"Неделя"]
[null,"Общо часове седмично",{"$f":"SUBTOTAL(109,Септември[Седмица 1])","v":0},{"$f":"SUBTOTAL(109,Септември[Извънредни])","v":0},{"$f":"SUBTOTAL(109,Септември[Седмица 2])","v":0},{"$f":"SUBTOTAL(109,Септември[[Извънредни ]])","v":0},{"$f":"SUBTOTAL(109,Септември[Седмица 3])","v":0},{"$f":"SUBTOTAL(109,Септември[[Извънредни  ]])","v":0},{"$f":"SUBTOTAL(109,Септември[Седмица 4])","v":0},{"$f":"SUBTOTAL(109,Септември[[Извънредни   ]])","v":0},{"$f":"SUBTOTAL(109,Септември[Седмица 5])","v":0},{"$f":"SUBTOTAL(109,Септември[[Извънредни    ]])","v":0}]
[null,"Септември общо: Редовни часове",{"$f":"SUM(Септември[[#Totals],[Седмица 1]],Септември[[#Totals],[Седмица 2]],Септември[[#Totals],[Седмица 3]],Септември[[#Totals],[Седмица 4]],Септември[[#Totals],[Седмица 5]])","v":0},"Септември общо: Извънредни",null,{"$f":"SUM(Септември[[#Totals],[Извънредни]],Септември[[#Totals],[Извънредни ]],Септември[[#Totals],[Извънредни  ]],Септември[[#Totals],[Извънредни   ]],Септември[[#Totals],[Извънредни    ]])","v":0}]
[]
[null,"Октомври, ноември, декември      Работна карта на служител: Дневно, седмично, месечно, годишно"]
[null,"Октомври","Седмица 1","Извънредни","Седмица 2","Извънредни ","Седмица 3","Извънредни  ","Седмица 4","Извънредни   ","Седмица 5","Извънредни    "]
[null,"Понеделник"]
[null,"Вторник"]
[null,"Сряда"]
[null,"Четвъртък"]
[null,"Петък"]
[null,"Събота"]
[null,"Неделя"]
[null,"Общо часове седмично",{"$f":"SUBTOTAL(109,Октомври[Седмица 1])","v":0},{"$f":"SUBTOTAL(109,Октомври[Извънредни])","v":0},{"$f":"SUBTOTAL(109,Октомври[Седмица 2])","v":0},{"$f":"SUBTOTAL(109,Октомври[[Извънредни ]])","v":0},{"$f":"SUBTOTAL(109,Октомври[Седмица 3])","v":0},{"$f":"SUBTOTAL(109,Октомври[[Извънредни  ]])","v":0},{"$f":"SUBTOTAL(109,Октомври[Седмица 4])","v":0},{"$f":"SUBTOTAL(109,Октомври[[Извънредни   ]])","v":0},{"$f":"SUBTOTAL(109,Октомври[Седмица 5])","v":0},{"$f":"SUBTOTAL(109,Октомври[[Извънредни    ]])","v":0}]
[null,"Октомври общо: Редовни часове",{"$f":"SUM(Октомври[[#Totals],[Седмица 1]],Октомври[[#Totals],[Седмица 2]],Октомври[[#Totals],[Седмица 3]],Октомври[[#Totals],[Седмица 4]],Октомври[[#Totals],[Седмица 5]])","v":0},"Октомври общо: Извънредни",null,{"$f":"SUM(Октомври[[#Totals],[Извънредни]],Октомври[[#Totals],[Извънредни ]],Октомври[[#Totals],[Извънредни  ]],Октомври[[#Totals],[Извънредни   ]],Октомври[[#Totals],[Извънредни    ]])","v":0}]
[]
[null,"Ноември","Седмица 1","Извънредни","Седмица 2","Извънредни ","Седмица 3","Извънредни  ","Седмица 4","Извънредни   ","Седмица 5","Извънредни    "]
[null,"Понеделник"]
[null,"Вторник"]
[null,"Сряда"]
[null,"Четвъртък"]
[null,"Петък"]
[null,"Събота"]
[null,"Неделя"]
[null,"Общо часове седмично",{"$f":"SUBTOTAL(109,Ноември[Седмица 1])","v":0},{"$f":"SUBTOTAL(109,Ноември[Извънредни])","v":0},{"$f":"SUBTOTAL(109,Ноември[Седмица 2])","v":0},{"$f":"SUBTOTAL(109,Ноември[[Извънредни ]])","v":0},{"$f":"SUBTOTAL(109,Ноември[Седмица 3])","v":0},{"$f":"SUBTOTAL(109,Ноември[[Извънредни  ]])","v":0},{"$f":"SUBTOTAL(109,Ноември[Седмица 4])","v":0},{"$f":"SUBTOTAL(109,Ноември[[Извънредни   ]])","v":0},{"$f":"SUBTOTAL(109,Ноември[Седмица 5])","v":0},{"$f":"SUBTOTAL(109,Ноември[[Извънредни    ]])","v":0}]
[null,"Ноември общо: Редовни часове",{"$f":"SUM(Ноември[[#Totals],[Седмица 1]],Ноември[[#Totals],[Седмица 2]],Ноември[[#Totals],[Седмица 3]],Ноември[[#Totals],[Седмица 4]],Ноември[[#Totals],[Седмица 5]])","v":0},"Ноември общо: Извънредни",null,{"$f":"SUM(Ноември[[#Totals],[Извънредни]],Ноември[[#Totals],[Извънредни ]],Ноември[[#Totals],[Извънредни  ]],Ноември[[#Totals],[Извънредни   ]],Ноември[[#Totals],[Извънредни    ]])","v":0}]
[]
[null,"Декември","Седмица 1","Извънредни","Седмица 2","Извънредни ","Седмица 3","Извънредни  ","Седмица 4","Извънредни   ","Седмица 5","Извънредни    "]
[null,"Понеделник"]
[null,"Вторник"]
[null,"Сряда"]
[null,"Четвъртък"]
[null,"Петък"]
[null,"Събота"]
[null,"Неделя"]
[null,"Общо часове седмично",{"$f":"SUBTOTAL(109,Декември[Седмица 1])","v":0},{"$f":"SUBTOTAL(109,Декември[Извънредни])","v":0},{"$f":"SUBTOTAL(105,Декември[Седмица 2])","v":0},{"$f":"SUBTOTAL(109,Декември[[Извънредни ]])","v":0},{"$f":"SUBTOTAL(109,Декември[Седмица 3])","v":0},{"$f":"SUBTOTAL(109,Декември[[Извънредни  ]])","v":0},{"$f":"SUBTOTAL(109,Декември[Седмица 4])","v":0},{"$f":"SUBTOTAL(109,Декември[[Извънредни   ]])","v":0},{"$f":"SUBTOTAL(109,Декември[Седмица 5])","v":0},{"$f":"SUBTOTAL(109,Декември[[Извънредни    ]])","v":0}]
[null,"Декември общо: Редовни часове",{"$f":"SUM(Декември[[#Totals],[Седмица 1]],Декември[[#Totals],[Седмица 2]],Декември[[#Totals],[Седмица 3]],Декември[[#Totals],[Седмица 4]],Декември[[#Totals],[Седмица 5]])","v":0},"Декември общо: Извънредни",null,{"$f":"SUM(Декември[[#Totals],[Извънредни]],Декември[[#Totals],[Извънредни ]],Декември[[#Totals],[Извънредни  ]],Декември[[#Totals],[Извънредни   ]],Декември[[#Totals],[Извънредни    ]])","v":0}]